[Event "Titled Tuesday Blitz November 14 Early 2023"]
[White "Senft, Sean"]
[Black "RodokininEV"]
[WhiteFideId "2044960"]
[WhiteElo "2285"]
[BlackElo "2546"]
[Result "1-0"]
[Round "3"]
[TimeControl "180+1"]
[Date "2023.11.14"]
[WhiteClock "0:02:32"]
[BlackClock "0:01:14"]
[Board "161"]

1. d4 {[%clk 0:02:57]}  Nf6 {[%clk 0:02:59]} 2. c4 {[%clk 0:02:57]}  g6 {[%clk 0:02:57]} 3. Nc3 {[%clk 0:02:58]}  Bg7 {[%clk 0:02:57]} 4. e4 {[%clk 0:02:58]}  d6 {[%clk 0:02:58]} 5. f4 {[%clk 0:02:58]}  O-O {[%clk 0:02:58]} 6. Nf3 {[%clk 0:02:58]}  c5 {[%clk 0:02:58]} 7. d5 {[%clk 0:02:58]}  Bg4 {[%clk 0:02:57]} 8. Bd3 {[%clk 0:02:58]}  e6 {[%clk 0:02:56]} 9. O-O {[%clk 0:02:59]}  exd5 {[%clk 0:02:55]} 10. exd5 {[%clk 0:03:00]}  Na6 {[%clk 0:02:52]} 11. h3 {[%clk 0:02:59]}  Bxf3 {[%clk 0:02:52]} 12. Qxf3 {[%clk 0:03:00]}  Nc7 {[%clk 0:02:50]} 13. f5 {[%clk 0:03:00]}  Nd7 {[%clk 0:02:49]} 14. Bf4 {[%clk 0:02:58]}  Ne5 {[%clk 0:02:49]} 15. Bxe5 {[%clk 0:02:57]}  Bxe5 {[%clk 0:02:50]} 16. f6 {[%clk 0:02:52]}  Ne8 {[%clk 0:02:44]} 17. Ne4 {[%clk 0:02:51]}  Bxb2 {[%clk 0:02:36]} 18. Rab1 {[%clk 0:02:52]}  Bd4+ {[%clk 0:02:36]} 19. Kh1 {[%clk 0:02:53]}  b6 {[%clk 0:02:36]} 20. Qf4 {[%clk 0:02:45]}  Kh8 {[%clk 0:02:34]} 21. Qh6 {[%clk 0:02:38]}  Nxf6 {[%clk 0:01:14]} 22. Ng5 {[%clk 0:02:32]} 1-0


[Site "https://www.chess.com"]

[Event "Titled Tuesday Blitz November 14 Early 2023"]
[White "Lopez Martinez, Josep Manuel"]
[Black "Liu, Leonardo"]
[WhiteFideId "2212943"]
[BlackFideId "30965780"]
[WhiteElo "2545"]
[BlackElo "2255"]
[Result "0-1"]
[Round "3"]
[TimeControl "180+1"]
[Date "2023.11.14"]
[WhiteClock "0:00:00"]
[BlackClock "0:01:08"]
[Board "162"]

1. e4 {[%clk 0:02:54]}  c5 {[%clk 0:02:58]} 2. Nf3 {[%clk 0:02:53]}  g5 {[%clk 0:02:58]} 3. Nxg5 {[%clk 0:02:48]}  d6 {[%clk 0:02:54]} 4. d4 {[%clk 0:02:39]}  cxd4 {[%clk 0:02:52]} 5. Qxd4 {[%clk 0:02:10]}  e5 {[%clk 0:02:51]} 6. Qe3 {[%clk 0:02:07]}  Bh6 {[%clk 0:02:48]} 7. Qg3 {[%clk 0:01:54]}  f6 {[%clk 0:02:44]} 8. Ne6 {[%clk 0:01:21]}  Bxe6 {[%clk 0:02:40]} 9. Bxh6 {[%clk 0:01:14]}  Nxh6 {[%clk 0:02:40]} 10. Qg7 {[%clk 0:01:13]}  Nf7 {[%clk 0:02:41]} 11. Nc3 {[%clk 0:01:12]}  Nd7 {[%clk 0:02:36]} 12. O-O-O {[%clk 0:01:12]}  Qe7 {[%clk 0:02:33]} 13. Nb5 {[%clk 0:01:07]}  O-O-O {[%clk 0:02:28]} 14. Nxa7+ {[%clk 0:01:04]}  Kb8 {[%clk 0:02:28]} 15. Qg3 {[%clk 0:00:40]}  Kxa7 {[%clk 0:02:26]} 16. Rd3 {[%clk 0:00:40]}  Nc5 {[%clk 0:02:16]} 17. Ra3+ {[%clk 0:00:40]}  Kb8 {[%clk 0:02:16]} 18. Qe3 {[%clk 0:00:39]}  d5 {[%clk 0:01:51]} 19. exd5 {[%clk 0:00:38]}  Bxd5 {[%clk 0:01:52]} 20. b4 {[%clk 0:00:36]}  Na6 {[%clk 0:01:52]} 21. Bxa6 {[%clk 0:00:33]}  bxa6 {[%clk 0:01:53]} 22. Rxa6 {[%clk 0:00:32]}  Rd6 {[%clk 0:01:45]} 23. Ra5 {[%clk 0:00:28]}  Rc8 {[%clk 0:01:38]} 24. Rd1 {[%clk 0:00:15]}  Qb7 {[%clk 0:01:37]} 25. Qa3 {[%clk 0:00:12]}  Be4 {[%clk 0:01:30]} 26. Rc5 {[%clk 0:00:08]}  Rxd1+ {[%clk 0:01:28]} 27. Kxd1 {[%clk 0:00:08]}  Rxc5 {[%clk 0:01:28]} 28. bxc5 {[%clk 0:00:09]}  Qd5+ {[%clk 0:01:29]} 29. Kc1 {[%clk 0:00:08]}  Qb7 {[%clk 0:01:24]} 30. Qa5 {[%clk 0:00:06]}  Qc7 {[%clk 0:01:15]} 31. Qb5+ {[%clk 0:00:05]}  Bb7 {[%clk 0:01:13]} 32. a4 {[%clk 0:00:03]}  Nd8 {[%clk 0:01:12]} 33. a5 {[%clk 0:00:00]}  Ka7 {[%clk 0:01:08]} 0-1


[Site "https://www.chess.com"]

[Event "Titled Tuesday Blitz November 14 Early 2023"]
[White "Leyva Proenza, Richard"]
[Black "Skibbe, Willi"]
[WhiteFideId "3500985"]
[BlackFideId "4682190"]
[WhiteElo "2543"]
[BlackElo "2234"]
[Result "0-1"]
[Round "3"]
[TimeControl "180+1"]
[Date "2023.11.14"]
[WhiteClock "0:00:00"]
[BlackClock "0:00:06"]
[Board "165"]

1. e4 {[%clk 0:02:57]}  e6 {[%clk 0:02:53]} 2. d4 {[%clk 0:02:57]}  d5 {[%clk 0:02:52]} 3. Nc3 {[%clk 0:02:57]}  Nf6 {[%clk 0:02:52]} 4. Bg5 {[%clk 0:02:56]}  dxe4 {[%clk 0:02:48]} 5. Nxe4 {[%clk 0:02:56]}  Be7 {[%clk 0:02:48]} 6. Bxf6 {[%clk 0:02:56]}  gxf6 {[%clk 0:02:48]} 7. Qd3 {[%clk 0:02:56]}  b6 {[%clk 0:02:25]} 8. O-O-O {[%clk 0:02:54]}  Bb7 {[%clk 0:02:23]} 9. Nc3 {[%clk 0:02:54]}  c6 {[%clk 0:01:48]} 10. f4 {[%clk 0:02:52]}  f5 {[%clk 0:01:47]} 11. Nf3 {[%clk 0:02:44]}  Nd7 {[%clk 0:01:47]} 12. h3 {[%clk 0:02:36]}  Qc7 {[%clk 0:01:43]} 13. Ne5 {[%clk 0:02:33]}  Nxe5 {[%clk 0:01:41]} 14. dxe5 {[%clk 0:02:29]}  Rd8 {[%clk 0:01:29]} 15. Qg3 {[%clk 0:02:28]}  Kf8 {[%clk 0:01:27]} 16. Rxd8+ {[%clk 0:02:26]}  Qxd8 {[%clk 0:01:27]} 17. Bd3 {[%clk 0:02:22]}  h5 {[%clk 0:01:23]} 18. h4 {[%clk 0:02:11]}  Rg8 {[%clk 0:01:22]} 19. Qf2 {[%clk 0:02:11]}  c5 {[%clk 0:01:17]} 20. Rh2 {[%clk 0:02:11]}  Qd4 {[%clk 0:01:08]} 21. Qf1 {[%clk 0:01:26]}  Qe3+ {[%clk 0:00:48]} 22. Kb1 {[%clk 0:01:26]}  Qg3 {[%clk 0:00:47]} 23. Qg1 {[%clk 0:00:54]}  Qxf4 {[%clk 0:00:39]} 24. Be2 {[%clk 0:00:48]}  Bxh4 {[%clk 0:00:21]} 25. Bxh5 {[%clk 0:00:42]}  Bf2 {[%clk 0:00:19]} 26. Qh1 {[%clk 0:00:41]}  Bd4 {[%clk 0:00:17]} 27. Ne2 {[%clk 0:00:18]}  Qxe5 {[%clk 0:00:14]} 28. Nxd4 {[%clk 0:00:14]}  Qxd4 {[%clk 0:00:13]} 29. a3 {[%clk 0:00:13]}  Qf2 {[%clk 0:00:13]} 30. Bxf7 {[%clk 0:00:10]}  Rxg2 {[%clk 0:00:07]} 31. Rh8+ {[%clk 0:00:08]}  Ke7 {[%clk 0:00:07]} 32. Re8+ {[%clk 0:00:02]}  Kxf7 {[%clk 0:00:07]} 33. Qh5+ {[%clk 0:00:02]}  Kf6 {[%clk 0:00:07]} 34. Qh8+ {[%clk 0:00:00]}  Kg5 {[%clk 0:00:06]} 0-1


[Site "https://www.chess.com"]

[Event "Titled Tuesday Blitz November 14 Early 2023"]
[White "Mishra, Manoj"]
[Black "ChainedDowntohell"]
[WhiteFideId "5006007"]
[WhiteElo "2204"]
[BlackElo "2541"]
[Result "0-1"]
[Round "3"]
[TimeControl "180+1"]
[Date "2023.11.14"]
[WhiteClock "0:00:09"]
[BlackClock "0:00:28"]
[Board "166"]

1. d4 {[%clk 0:02:38]}  Nf6 {[%clk 0:02:58]} 2. Nc3 {[%clk 0:02:36]}  e6 {[%clk 0:02:56]} 3. Bf4 {[%clk 0:02:35]}  d5 {[%clk 0:02:51]} 4. e3 {[%clk 0:02:35]}  a6 {[%clk 0:02:49]} 5. Nf3 {[%clk 0:02:31]}  b5 {[%clk 0:02:46]} 6. Ne5 {[%clk 0:02:29]}  Bb7 {[%clk 0:02:43]} 7. Bd3 {[%clk 0:02:27]}  c5 {[%clk 0:02:41]} 8. a3 {[%clk 0:02:22]}  Nc6 {[%clk 0:02:38]} 9. O-O {[%clk 0:02:15]}  Bd6 {[%clk 0:02:22]} 10. Nxc6 {[%clk 0:02:13]}  Bxc6 {[%clk 0:02:22]} 11. dxc5 {[%clk 0:02:02]}  Bxf4 {[%clk 0:02:08]} 12. exf4 {[%clk 0:02:01]}  d4 {[%clk 0:02:09]} 13. Ne2 {[%clk 0:01:58]}  Qd5 {[%clk 0:02:06]} 14. f3 {[%clk 0:01:51]}  Qxc5 {[%clk 0:01:59]} 15. Kh1 {[%clk 0:01:37]}  O-O {[%clk 0:01:58]} 16. Nxd4 {[%clk 0:01:35]}  Bb7 {[%clk 0:01:45]} 17. b4 {[%clk 0:01:31]}  Qc7 {[%clk 0:01:39]} 18. Nb3 {[%clk 0:01:31]}  Qxf4 {[%clk 0:01:32]} 19. Nc5 {[%clk 0:01:29]}  Bc6 {[%clk 0:01:29]} 20. Qc1 {[%clk 0:01:29]}  Qh4 {[%clk 0:01:28]} 21. Qe1 {[%clk 0:01:22]}  Qh5 {[%clk 0:01:22]} 22. Rd1 {[%clk 0:01:11]}  Kh8 {[%clk 0:01:17]} 23. Ne4 {[%clk 0:00:49]}  Nd5 {[%clk 0:01:13]} 24. c4 {[%clk 0:00:44]}  Nf4 {[%clk 0:01:08]} 25. Ng3 {[%clk 0:00:34]}  Qh4 {[%clk 0:00:59]} 26. Be4 {[%clk 0:00:29]}  Bxe4 {[%clk 0:00:49]} 27. Qxe4 {[%clk 0:00:30]}  bxc4 {[%clk 0:00:47]} 28. Qxc4 {[%clk 0:00:25]}  Nxg2 {[%clk 0:00:45]} 29. Rd4 {[%clk 0:00:25]}  Qh3 {[%clk 0:00:37]} 30. Qe2 {[%clk 0:00:16]}  Nh4 {[%clk 0:00:34]} 31. Rfd1 {[%clk 0:00:11]}  Rac8 {[%clk 0:00:28]} 32. Qxa6 {[%clk 0:00:09]}  Qg2# {[%clk 0:00:28]} 0-1


[Site "https://www.chess.com"]

[Event "Titled Tuesday Blitz November 14 Early 2023"]
[White "missponyo10"]
[Black "Grunberg, Mihai-Lucian"]
[BlackFideId "1204149"]
[WhiteElo "2153"]
[BlackElo "2540"]
[Result "0-1"]
[Round "3"]
[TimeControl "180+1"]
[Date "2023.11.14"]
[WhiteClock "0:00:05"]
[BlackClock "0:00:40"]
[Board "167"]

1. e4 {[%clk 0:03:00]}  c5 {[%clk 0:03:00]} 2. Nf3 {[%clk 0:03:00]}  Nc6 {[%clk 0:03:00]} 3. d3 {[%clk 0:03:00]}  d5 {[%clk 0:03:00]} 4. Nbd2 {[%clk 0:03:01]}  Nf6 {[%clk 0:02:59]} 5. g3 {[%clk 0:03:02]}  dxe4 {[%clk 0:02:58]} 6. dxe4 {[%clk 0:03:02]}  g6 {[%clk 0:02:59]} 7. Bg2 {[%clk 0:03:02]}  Bg7 {[%clk 0:02:59]} 8. O-O {[%clk 0:03:02]}  O-O {[%clk 0:03:00]} 9. c3 {[%clk 0:02:58]}  b6 {[%clk 0:03:00]} 10. Qc2 {[%clk 0:02:58]}  Ba6 {[%clk 0:02:59]} 11. Re1 {[%clk 0:02:56]}  Bd3 {[%clk 0:02:59]} 12. Qd1 {[%clk 0:02:56]}  c4 {[%clk 0:02:53]} 13. Bf1 {[%clk 0:02:40]}  b5 {[%clk 0:02:45]} 14. Bxd3 {[%clk 0:02:27]}  Qxd3 {[%clk 0:02:45]} 15. Qe2 {[%clk 0:02:22]}  Rfd8 {[%clk 0:02:41]} 16. Qxd3 {[%clk 0:02:20]}  Rxd3 {[%clk 0:02:40]} 17. Kg2 {[%clk 0:02:19]}  Rad8 {[%clk 0:02:31]} 18. Nf1 {[%clk 0:02:19]}  Ng4 {[%clk 0:02:24]} 19. Bf4 {[%clk 0:02:10]}  a5 {[%clk 0:02:19]} 20. h3 {[%clk 0:02:09]}  Nge5 {[%clk 0:02:18]} 21. Bxe5 {[%clk 0:02:02]}  Nxe5 {[%clk 0:02:16]} 22. Nxe5 {[%clk 0:02:02]}  Bxe5 {[%clk 0:02:16]} 23. Re2 {[%clk 0:01:58]}  b4 {[%clk 0:02:13]} 24. cxb4 {[%clk 0:01:48]}  axb4 {[%clk 0:02:10]} 25. Rc1 {[%clk 0:01:49]}  c3 {[%clk 0:02:06]} 26. bxc3 {[%clk 0:01:50]}  bxc3 {[%clk 0:02:03]} 27. Rec2 {[%clk 0:01:46]}  g5 {[%clk 0:01:59]} 28. Ne3 {[%clk 0:01:46]}  e6 {[%clk 0:01:52]} 29. Nc4 {[%clk 0:01:24]}  Bd4 {[%clk 0:01:51]} 30. Na3 {[%clk 0:01:23]}  Rb8 {[%clk 0:01:39]} 31. Nb1 {[%clk 0:01:18]}  Rb2 {[%clk 0:01:39]} 32. Rxb2 {[%clk 0:01:06]}  cxb2 {[%clk 0:01:38]} 33. Re1 {[%clk 0:01:07]}  Kg7 {[%clk 0:01:27]} 34. Kf1 {[%clk 0:00:57]}  Rf3 {[%clk 0:01:25]} 35. Re2 {[%clk 0:00:51]}  h5 {[%clk 0:01:23]} 36. Rd2 {[%clk 0:00:50]}  e5 {[%clk 0:01:19]} 37. Kg2 {[%clk 0:00:42]}  g4 {[%clk 0:01:19]} 38. hxg4 {[%clk 0:00:40]}  hxg4 {[%clk 0:01:19]} 39. Rc2 {[%clk 0:00:34]}  Rd3 {[%clk 0:01:18]} 40. Rd2 {[%clk 0:00:32]}  Rf3 {[%clk 0:01:14]} 41. Rc2 {[%clk 0:00:32]}  Kf6 {[%clk 0:01:13]} 42. a4 {[%clk 0:00:20]}  Ke6 {[%clk 0:01:11]} 43. a5 {[%clk 0:00:20]}  Rb3 {[%clk 0:01:07]} 44. a6 {[%clk 0:00:19]}  Rb6 {[%clk 0:01:04]} 45. a7 {[%clk 0:00:19]}  Ra6 {[%clk 0:01:04]} 46. Rc6+ {[%clk 0:00:18]}  Rxc6 {[%clk 0:01:02]} 47. a8=Q {[%clk 0:00:17]}  Rc2 {[%clk 0:00:58]} 48. Qd5+ {[%clk 0:00:17]}  Kf6 {[%clk 0:00:54]} 49. Qd6+ {[%clk 0:00:17]}  Kg7 {[%clk 0:00:54]} 50. Qd7 {[%clk 0:00:13]}  Rxf2+ {[%clk 0:00:53]} 51. Kh1 {[%clk 0:00:12]}  Rc2 {[%clk 0:00:51]} 52. Qxg4+ {[%clk 0:00:10]}  Kf8 {[%clk 0:00:51]} 53. Qg5 {[%clk 0:00:08]}  Ke8 {[%clk 0:00:47]} 54. Qg8+ {[%clk 0:00:05]}  Ke7 {[%clk 0:00:47]} 55. Qa8 {[%clk 0:00:05]}  Rc1+ {[%clk 0:00:46]} 56. Kg2 {[%clk 0:00:05]}  Rxb1 {[%clk 0:00:47]} 57. Qb7+ {[%clk 0:00:06]}  Kf6 {[%clk 0:00:45]} 58. Qc6+ {[%clk 0:00:06]}  Kg7 {[%clk 0:00:44]} 59. Qd6 {[%clk 0:00:03]}  Rg1+ {[%clk 0:00:43]} 60. Kh3 {[%clk 0:00:03]}  b1=Q {[%clk 0:00:42]} 61. Qe7 {[%clk 0:00:04]}  Rh1+ {[%clk 0:00:41]} 62. Kg4 {[%clk 0:00:04]}  Qxe4+ {[%clk 0:00:41]} 63. Kg5 {[%clk 0:00:05]}  Be3# {[%clk 0:00:40]} 0-1


[Site "https://www.chess.com"]

[Event "Titled Tuesday Blitz November 14 Early 2023"]
[White "Kochiev, Ivan"]
[Black "Hartikainen, Jarmo"]
[WhiteFideId "2917890"]
[BlackFideId "503134"]
[WhiteElo "2537"]
[BlackElo "2164"]
[Result "1-0"]
[Round "3"]
[TimeControl "180+1"]
[Date "2023.11.14"]
[WhiteClock "0:00:50"]
[BlackClock "0:00:22"]
[Board "168"]

1. e4 {[%clk 0:03:00]}  e5 {[%clk 0:02:59]} 2. Nf3 {[%clk 0:02:59]}  Nf6 {[%clk 0:02:58]} 3. Nxe5 {[%clk 0:02:57]}  d6 {[%clk 0:02:58]} 4. Nf3 {[%clk 0:02:57]}  Nxe4 {[%clk 0:02:58]} 5. d4 {[%clk 0:02:58]}  d5 {[%clk 0:02:58]} 6. Bd3 {[%clk 0:02:58]}  Bg4 {[%clk 0:02:57]} 7. O-O {[%clk 0:02:56]}  Be7 {[%clk 0:02:57]} 8. c4 {[%clk 0:02:54]}  Nc6 {[%clk 0:02:46]} 9. cxd5 {[%clk 0:02:22]}  Qxd5 {[%clk 0:02:41]} 10. Nc3 {[%clk 0:02:21]}  Nxc3 {[%clk 0:02:40]} 11. bxc3 {[%clk 0:02:22]}  Bxf3 {[%clk 0:02:39]} 12. gxf3 {[%clk 0:02:21]}  O-O {[%clk 0:02:30]} 13. Rb1 {[%clk 0:02:18]}  Rab8 {[%clk 0:02:28]} 14. Re1 {[%clk 0:02:07]}  Bf6 {[%clk 0:02:24]} 15. Bf4 {[%clk 0:01:58]}  Rfe8 {[%clk 0:01:55]} 16. Rxe8+ {[%clk 0:01:42]}  Rxe8 {[%clk 0:01:53]} 17. Rxb7 {[%clk 0:01:31]}  Nxd4 {[%clk 0:01:33]} 18. Be4 {[%clk 0:01:17]}  Nxf3+ {[%clk 0:01:09]} 19. Qxf3 {[%clk 0:01:07]}  Qxa2 {[%clk 0:00:53]} 20. Rxc7 {[%clk 0:00:55]}  Qa1+ {[%clk 0:00:49]} 21. Kg2 {[%clk 0:00:55]}  Bxc3 {[%clk 0:00:49]} 22. Bxh7+ {[%clk 0:00:52]}  Kxh7 {[%clk 0:00:31]} 23. Qh5+ {[%clk 0:00:52]}  Kg8 {[%clk 0:00:31]} 24. Qxf7+ {[%clk 0:00:52]}  Kh7 {[%clk 0:00:22]} 25. Qxe8 {[%clk 0:00:50]} 1-0


[Site "https://www.chess.com"]

[Event "Titled Tuesday Blitz November 14 Early 2023"]
[White "dumbernugget"]
[Black "Kiremitciyan, Ari"]
[BlackFideId "6373445"]
[WhiteElo "1706"]
[BlackElo "2533"]
[Result "1/2-1/2"]
[Round "3"]
[TimeControl "180+1"]
[Date "2023.11.14"]
[WhiteClock "0:00:07"]
[BlackClock "0:00:12"]
[Board "169"]

1. d4 {[%clk 0:03:00]}  g6 {[%clk 0:02:59]} 2. c4 {[%clk 0:03:00]}  Bg7 {[%clk 0:02:59]} 3. Nc3 {[%clk 0:03:00]}  d6 {[%clk 0:03:00]} 4. e4 {[%clk 0:02:59]}  Nc6 {[%clk 0:03:00]} 5. Nf3 {[%clk 0:02:57]}  Bg4 {[%clk 0:03:00]} 6. Be3 {[%clk 0:02:42]}  Bxf3 {[%clk 0:02:59]} 7. gxf3 {[%clk 0:02:40]}  e5 {[%clk 0:02:59]} 8. d5 {[%clk 0:02:39]}  Nd4 {[%clk 0:02:59]} 9. Bxd4 {[%clk 0:02:24]}  exd4 {[%clk 0:02:59]} 10. Nb5 {[%clk 0:02:23]}  c5 {[%clk 0:02:58]} 11. dxc6 {[%clk 0:02:20]}  bxc6 {[%clk 0:02:59]} 12. Nxd4 {[%clk 0:02:13]}  Qa5+ {[%clk 0:02:50]} 13. Ke2 {[%clk 0:02:12]}  Qc5 {[%clk 0:02:47]} 14. Nb3 {[%clk 0:01:58]}  Qxc4+ {[%clk 0:02:47]} 15. Ke3 {[%clk 0:01:29]}  Qb4 {[%clk 0:02:41]} 16. Qc2 {[%clk 0:01:24]}  Qb6+ {[%clk 0:02:38]} 17. Ke2 {[%clk 0:01:20]}  Ne7 {[%clk 0:02:37]} 18. Rd1 {[%clk 0:01:16]}  Rd8 {[%clk 0:02:29]} 19. Bh3 {[%clk 0:00:54]}  O-O {[%clk 0:02:29]} 20. Rhe1 {[%clk 0:00:43]}  d5 {[%clk 0:02:25]} 21. Kf1 {[%clk 0:00:40]}  Qc7 {[%clk 0:02:19]} 22. Kg1 {[%clk 0:00:32]}  Be5 {[%clk 0:02:18]} 23. exd5 {[%clk 0:00:20]}  Nxd5 {[%clk 0:02:16]} 24. Nd4 {[%clk 0:00:19]}  Bxh2+ {[%clk 0:02:13]} 25. Kh1 {[%clk 0:00:19]}  Nb4 {[%clk 0:01:51]} 26. Qc3 {[%clk 0:00:16]}  c5 {[%clk 0:01:45]} 27. Nb3 {[%clk 0:00:15]}  Nxa2 {[%clk 0:01:40]} 28. Qxc5 {[%clk 0:00:14]}  Qb8 {[%clk 0:01:30]} 29. Rxd8 {[%clk 0:00:14]}  Rxd8 {[%clk 0:01:30]} 30. Qa5 {[%clk 0:00:12]}  Nb4 {[%clk 0:01:24]} 31. Nc5 {[%clk 0:00:07]}  Bc7 {[%clk 0:01:17]} 32. Qa3 {[%clk 0:00:05]}  a5 {[%clk 0:01:12]} 33. Nd7 {[%clk 0:00:04]}  Qb7 {[%clk 0:01:03]} 34. Qc3 {[%clk 0:00:04]}  Nd5 {[%clk 0:00:54]} 35. Qd4 {[%clk 0:00:04]}  Bb6 {[%clk 0:00:48]} 36. Nf6+ {[%clk 0:00:03]}  Nxf6 {[%clk 0:00:45]} 37. Qxf6 {[%clk 0:00:03]}  Rf8 {[%clk 0:00:36]} 38. Re7 {[%clk 0:00:04]}  Bd8 {[%clk 0:00:31]} 39. Rxb7 {[%clk 0:00:03]}  Bxf6 {[%clk 0:00:31]} 40. Ra7 {[%clk 0:00:03]}  Rb8 {[%clk 0:00:26]} 41. Rxa5 {[%clk 0:00:04]}  Rxb2 {[%clk 0:00:26]} 42. Ra8+ {[%clk 0:00:03]}  Kg7 {[%clk 0:00:27]} 43. Ra7 {[%clk 0:00:03]}  Rxf2 {[%clk 0:00:18]} 44. Be6 {[%clk 0:00:03]}  Rxf3 {[%clk 0:00:17]} 45. Rxf7+ {[%clk 0:00:03]}  Kh6 {[%clk 0:00:18]} 46. Bd5 {[%clk 0:00:03]}  Rf4 {[%clk 0:00:18]} 47. Kg2 {[%clk 0:00:03]}  Be5 {[%clk 0:00:15]} 48. Rxf4 {[%clk 0:00:03]}  Bxf4 {[%clk 0:00:16]} 49. Kf3 {[%clk 0:00:03]}  Kg5 {[%clk 0:00:16]} 50. Bg8 {[%clk 0:00:03]}  h5 {[%clk 0:00:16]} 51. Be6 {[%clk 0:00:03]}  Bd6 {[%clk 0:00:17]} 52. Kg2 {[%clk 0:00:04]}  Kh4 {[%clk 0:00:16]} 53. Bf7 {[%clk 0:00:04]}  g5 {[%clk 0:00:15]} 54. Kh1 {[%clk 0:00:04]}  g4 {[%clk 0:00:16]} 55. Bd5 {[%clk 0:00:04]}  Kg3 {[%clk 0:00:15]} 56. Kg1 {[%clk 0:00:04]}  h4 {[%clk 0:00:15]} 57. Kh1 {[%clk 0:00:05]}  h3 {[%clk 0:00:15]} 58. Be4 {[%clk 0:00:05]}  Bc5 {[%clk 0:00:12]} 59. Bf5 {[%clk 0:00:05]}  Kf4 {[%clk 0:00:09]} 60. Bxg4 {[%clk 0:00:06]}  Kxg4 {[%clk 0:00:09]} 61. Kh2 {[%clk 0:00:06]}  Bd6+ {[%clk 0:00:10]} 62. Kh1 {[%clk 0:00:06]}  Bc5 {[%clk 0:00:10]} 63. Kh2 {[%clk 0:00:07]}  Bd6+ {[%clk 0:00:11]} 64. Kh1 {[%clk 0:00:07]}  Bc5 {[%clk 0:00:12]} 1/2-1/2


[Site "https://www.chess.com"]

[Event "Titled Tuesday Blitz November 14 Early 2023"]
[White "Dmitrenko, Viktor"]
[Black "Kovacsy, Barnabas"]
[WhiteFideId "14110270"]
[BlackFideId "769290"]
[WhiteElo "2360"]
[BlackElo "2528"]
[Result "1-0"]
[Round "3"]
[TimeControl "180+1"]
[Date "2023.11.14"]
[WhiteClock "0:00:16"]
[BlackClock "0:00:10"]
[Board "173"]

1. e4 {[%clk 0:03:00]}  c5 {[%clk 0:03:00]} 2. Nf3 {[%clk 0:03:00]}  e6 {[%clk 0:03:00]} 3. c3 {[%clk 0:03:00]}  d5 {[%clk 0:02:59]} 4. e5 {[%clk 0:02:59]}  d4 {[%clk 0:02:59]} 5. Bd3 {[%clk 0:02:59]}  Nc6 {[%clk 0:02:58]} 6. O-O {[%clk 0:02:54]}  Nge7 {[%clk 0:02:53]} 7. Be4 {[%clk 0:02:46]}  Ng6 {[%clk 0:02:43]} 8. Bxc6+ {[%clk 0:02:43]}  bxc6 {[%clk 0:02:44]} 9. d3 {[%clk 0:02:38]}  Qc7 {[%clk 0:02:35]} 10. Qe2 {[%clk 0:02:37]}  Bd7 {[%clk 0:02:27]} 11. c4 {[%clk 0:02:33]}  Be7 {[%clk 0:02:27]} 12. Nbd2 {[%clk 0:02:32]}  Rb8 {[%clk 0:02:15]} 13. Qe4 {[%clk 0:01:43]}  f5 {[%clk 0:01:56]} 14. exf6 {[%clk 0:01:17]}  gxf6 {[%clk 0:01:57]} 15. Re1 {[%clk 0:01:10]}  f5 {[%clk 0:01:54]} 16. Qe2 {[%clk 0:01:05]}  Rg8 {[%clk 0:01:49]} 17. Nf1 {[%clk 0:00:54]}  Nf4 {[%clk 0:00:50]} 18. Bxf4 {[%clk 0:00:52]}  Qxf4 {[%clk 0:00:51]} 19. Ne5 {[%clk 0:00:36]}  Qg5 {[%clk 0:00:51]} 20. f4 {[%clk 0:00:23]}  Qf6 {[%clk 0:00:47]} 21. Ng3 {[%clk 0:00:21]}  Rxg3 {[%clk 0:00:19]} 22. hxg3 {[%clk 0:00:18]}  Kd8 {[%clk 0:00:20]} 23. Nxd7 {[%clk 0:00:11]}  Kxd7 {[%clk 0:00:21]} 24. Qe5 {[%clk 0:00:11]}  Qxe5 {[%clk 0:00:21]} 25. Rxe5 {[%clk 0:00:12]}  Bd6 {[%clk 0:00:20]} 26. Re2 {[%clk 0:00:12]}  Rg8 {[%clk 0:00:20]} 27. Kf2 {[%clk 0:00:11]}  h6 {[%clk 0:00:17]} 28. Rh1 {[%clk 0:00:11]}  Rg6 {[%clk 0:00:17]} 29. b3 {[%clk 0:00:09]}  a5 {[%clk 0:00:16]} 30. Kf3 {[%clk 0:00:07]}  Ke7 {[%clk 0:00:17]} 31. Rh4 {[%clk 0:00:07]}  Kf7 {[%clk 0:00:16]} 32. g4 {[%clk 0:00:07]}  fxg4+ {[%clk 0:00:16]} 33. Rxg4 {[%clk 0:00:08]}  Rf6 {[%clk 0:00:16]} 34. g3 {[%clk 0:00:08]}  h5 {[%clk 0:00:14]} 35. Rh4 {[%clk 0:00:08]}  Rf5 {[%clk 0:00:15]} 36. Kg2 {[%clk 0:00:07]}  Kf6 {[%clk 0:00:14]} 37. Re1 {[%clk 0:00:07]}  e5 {[%clk 0:00:13]} 38. fxe5+ {[%clk 0:00:06]}  Bxe5 {[%clk 0:00:14]} 39. Reh1 {[%clk 0:00:06]}  Kg6 {[%clk 0:00:14]} 40. Re4 {[%clk 0:00:07]}  Bf6 {[%clk 0:00:13]} 41. Rf1 {[%clk 0:00:05]}  Rxf1 {[%clk 0:00:13]} 42. Kxf1 {[%clk 0:00:05]}  Kf7 {[%clk 0:00:14]} 43. Kg2 {[%clk 0:00:06]}  Bg7 {[%clk 0:00:10]} 44. Kf3 {[%clk 0:00:06]}  Bh6 {[%clk 0:00:09]} 45. Re5 {[%clk 0:00:06]}  Bf8 {[%clk 0:00:08]} 46. Rxh5 {[%clk 0:00:06]}  Bd6 {[%clk 0:00:09]} 47. Rf5+ {[%clk 0:00:06]}  Ke6 {[%clk 0:00:09]} 48. Ke4 {[%clk 0:00:06]}  Bxg3 {[%clk 0:00:09]} 49. Rxc5 {[%clk 0:00:06]}  Kd7 {[%clk 0:00:09]} 50. Rxa5 {[%clk 0:00:05]}  Kc7 {[%clk 0:00:09]} 51. Kxd4 {[%clk 0:00:05]}  Kb6 {[%clk 0:00:09]} 52. Rf5 {[%clk 0:00:03]}  c5+ {[%clk 0:00:09]} 53. Ke4 {[%clk 0:00:04]}  Bf2 {[%clk 0:00:09]} 54. Rd5 {[%clk 0:00:03]}  Ka5 {[%clk 0:00:10]} 55. d4 {[%clk 0:00:04]}  Kb4 {[%clk 0:00:07]} 56. dxc5 {[%clk 0:00:04]}  Ka5 {[%clk 0:00:06]} 57. c6+ {[%clk 0:00:05]}  Kb6 {[%clk 0:00:07]} 58. Rd6 {[%clk 0:00:05]}  Kc7 {[%clk 0:00:08]} 59. Rg6 {[%clk 0:00:05]}  Bc5 {[%clk 0:00:08]} 60. a4 {[%clk 0:00:05]}  Bb4 {[%clk 0:00:08]} 61. Kd3 {[%clk 0:00:06]}  Kb6 {[%clk 0:00:08]} 62. Kd4 {[%clk 0:00:06]}  Bc5+ {[%clk 0:00:09]} 63. Kd5 {[%clk 0:00:07]}  Bg1 {[%clk 0:00:09]} 64. Rg7 {[%clk 0:00:08]}  Bh2 {[%clk 0:00:07]} 65. Rb7+ {[%clk 0:00:08]}  Ka6 {[%clk 0:00:07]} 66. Rd7 {[%clk 0:00:08]}  Kb6 {[%clk 0:00:07]} 67. b4 {[%clk 0:00:08]}  Ka6 {[%clk 0:00:06]} 68. b5+ {[%clk 0:00:08]}  Kb6 {[%clk 0:00:06]} 69. c5+ {[%clk 0:00:09]}  Ka5 {[%clk 0:00:06]} 70. Ra7+ {[%clk 0:00:10]}  Kb4 {[%clk 0:00:06]} 71. c7 {[%clk 0:00:10]}  Bxc7 {[%clk 0:00:06]} 72. Rxc7 {[%clk 0:00:11]}  Ka5 {[%clk 0:00:07]} 73. c6 {[%clk 0:00:12]}  Kb6 {[%clk 0:00:07]} 74. Rb7+ {[%clk 0:00:12]}  Ka5 {[%clk 0:00:07]} 75. c7 {[%clk 0:00:13]}  Kb4 {[%clk 0:00:08]} 76. c8=Q {[%clk 0:00:13]}  Ka5 {[%clk 0:00:09]} 77. Qc7+ {[%clk 0:00:14]}  Kb4 {[%clk 0:00:09]} 78. Qc4+ {[%clk 0:00:15]}  Ka5 {[%clk 0:00:09]} 79. Ra7+ {[%clk 0:00:15]}  Kb6 {[%clk 0:00:10]} 80. Qc7# {[%clk 0:00:16]} 1-0


[Site "https://www.chess.com"]